[Event "Ceara-ch 2019"]
[Site "Fortaleza"]
[Date "2019.11.18"]
[Round "1.5"]
[White "Lima, Helio Viana Correia"]
[Black "Barreto, Paulo Robson Rodrigu"]
[Result "0-1"]
[ECO "A45"]
[WhiteElo "1950"]
[BlackElo "1692"]
[Annotator "NA RC"]
[PlyCount "142"]
[EventDate "2019.11.17"]
[EventType "tourn"]
[EventCountry "BRA"]
[SourceTitle "playchess.com"]
[Source "ChessBase"]
[SourceQuality "1"]
[TimeControl "5400+30"]

1. d4 {[%emt 0:00:00]} Nf6 {[%emt 0:00:43]} 2. Bf4 {[%emt 0:00:00]} c5 {[%emt 0:00:39]} 3. e3 {[%emt 0:00:09]} Qb6 {[%emt 0:00:18]} 4. Nc3 {[%emt 0:00:23]} a6 {[%emt 0:01:26]} 5. a3 {[%emt 0:02:44]} (5. Bc4 cxd4 6. exd4 e6 7. Nge2 d5 8. Bb3 Bd7 9. O-O Be7 10. Qe1 O-O 11. Rd1 Nc6 {1-0 (23) Aronian,L (2767)-Giri,A (2782) chess.com INT 2018}) 5... cxd4 {[%emt 0:04:11]} 6. exd4 {[%emt 0:00:21] A45: Trompowsky Attack} Nc6 {[%emt 0:03:44]} 7. Nf3 {[%emt 0:02:31]} d5 {[%emt 0:00:35]} 8. h3 {[%emt 0:04:30]} Bf5 {[%emt 0:03:46]} 9. Bd3 {[%emt 0:00:50]} Be4 $146 {[%emt 0:04:08]} ({Predecessor:} 9... Bxd3 10. Qxd3 e6 11. O-O {0-1 (34) Adocchio,G (2157)-Norowitz,Y (2412) Reykjavik 2018}) 10. O-O {[%emt 0:09:12]} e6 {[%emt 0:13:45]} 11. Re1 {[%emt 0:43:45]} Bxd3 {[%emt 0:07:24]} 12. Qxd3 {[%emt 0:00:24]} Be7 {[%emt 0:00:13]} 13. b4 {[%emt 0:12:58]} O-O {[%emt 0:18:44]} 14. Na4 {[%emt 0:01:59]} Qa7 {[%emt 0:00:15]} 15. Nc5 {[%emt 0:03:27]} b6 {[%emt 0:16:30]} 16. Nb3 {[%emt 0:00:54]} Rac8 {[%emt 0:01:25]} 17. Rac1 {[%emt 0:02:18]} Rfd8 {[%emt 0:02:28]} 18. c4 {[%emt 0:02:07]} dxc4 {[%emt 0:01:53]} 19. Rxc4 {[%emt 0:00:24]} Nd5 {[%emt 0:06:14]} 20. Bh2 {[%emt 0:00:50]} b5 {[%emt 0:01:58]} 21. Rcc1 {[%emt 0:00:11]} Nb6 {[%emt 0:02:00]} 22. Qe4 {[%emt 0:03:57]} Nc4 {[%emt 0:02:15]} 23. Red1 {[%emt 0:00:29]} (23. Nc5 $11) 23... Rd5 {[%emt 0:01:17]} 24. Ra1 {[%emt 0:00:54]} ({White should try} 24. Nc5 $1 $15 Kh8 25. Na4) 24... Rcd8 {[%emt 0:00:47]} 25. Rdc1 {[%emt 0:01:24]} Bf6 {[%emt 0:01:25]} 26. Qg4 {[%emt 0:05:23]} (26. Bf4 $17) 26... Nxd4 {[%emt 0:01:19]} 27. Nfxd4 {[%emt 0:00:09]} Bxd4 {[%emt 0:00:07]} 28. Nxd4 {[%emt 0:00:25]} Qxd4 {[%emt 0:00:17]} 29. Qxd4 {[%emt 0:00:17]} Rxd4 {[%emt 0:00:08]} 30. Bc7 {[%emt 0:00:45]} R8d7 {[%emt 0:00:20]} 31. Bg3 {[%emt 0:00:18]} f6 {[%emt 0:01:34]} 32. Kh2 {[%emt 0:00:21]} Kf7 {[%emt 0:00:20]} 33. a4 {[%emt 0:00:14]} f5 {[%emt 0:01:50]} 34. f3 {[%emt 0:00:38]} Rd2 {[%emt 0:00:16]} 35. axb5 {[%emt 0:00:23]} axb5 {[%emt 0:00:07]} 36. Be1 {[%emt 0:01:20]} Rb2 {[%emt 0:00:37]} 37. Rd1 {[%emt 0:00:37]} Rxd1 {[%emt 0:01:27]} 38. Rxd1 {[%emt 0:00:02]} Ne3 {[%emt 0:00:13]} 39. Rd7+ {[%emt 0:00:25]} Kg6 {[%emt 0:01:16]} 40. Rxg7+ {[%emt 0:00:12]} Kxg7 {[%emt 0:00:06]} 41. Bc3+ {[%emt 0:00:02]} Kf7 {[%emt 0:00:10]} 42. Bxb2 {[%emt 0:00:17]} Nd5 {[%emt 0:00:08]} 43. Ba3 {[%emt 0:00:14]} e5 {[%emt 0:00:27]} ({Black should play} 43... f4 $17 44. Kg1 Kf6) 44. Kg1 $2 {[%emt 0:00:26]} (44. g4 $17) 44... Ne3 {[%emt 0:00:29]} ({Black should try} 44... f4 $19 45. Kf2 Ke6) 45. Bb2 {[%emt 0:00:36]} (45. Bc1 $1 $15 Nc2 46. Bd2) 45... Ke6 {[%emt 0:00:06]} 46. Bc1 $2 {[%emt 0:00:36] [#]} (46. g3 $17 {keeps fighting.}) 46... Nd5 $2 {[%emt 0:02:06]} ({Black should try} 46... Nc2 $1 $19 47. Kf2 Nxb4) 47. Bd2 $1 {[%emt 0:00:11]} Ne7 {[%emt 0:00:14]} 48. Kf2 {[%emt 0:00:11] [#]} Kd5 $1 {[%emt 0:00:07]} 49. g4 $1 {[%emt 0:01:42]} f4 {[%emt 0:00:24]} 50. h4 {[%emt 0:00:32]} Kc4 {[%emt 0:01:31]} 51. Ke2 {[%emt 0:00:14] [#]} (51. h5 $11 {remains equal.}) 51... Nd5 $11 {[%emt 0:00:29]} ({Black should try} 51... Nc6 $1 $19 52. g5 Nd4+ 53. Kf2 Ne6) 52. g5 {[%emt 0:00:16]} Ne7 {[%emt 0:00:24]} 53. Be1 {[%emt 0:00:50]} Nf5 {[%emt 0:00:10]} 54. h5 {[%emt 0:00:53]} Ne7 {[%emt 0:01:11]} 55. Bd2 {[%emt 0:00:49]} Nf5 {[%emt 0:00:44]} 56. Be1 {[%emt 0:01:10]} h6 {[%emt 0:00:12]} 57. g6 {[%emt 0:00:16]} Ng7 {[%emt 0:00:01]} 58. Bh4 {[%emt 0:00:22]} Nxh5 {[%emt 0:00:12]} 59. Be7 {[%emt 0:00:21]} Kd5 {[%emt 0:01:38]} 60. Bf8 {[%emt 0:00:49]} Ke6 {[%emt 0:00:06]} 61. Bxh6 {[%emt 0:00:19]} Kf6 {[%emt 0:00:07]} 62. Bf8 {[%emt 0:00:55]} Kxg6 {[%emt 0:00:08]} 63. Kd3 {[%emt 0:00:22]} Kf5 {[%emt 0:00:02]} 64. Bd6 {[%emt 0:00:18]} Ng7 {[%emt 0:00:14]} 65. Bc5 {[%emt 0:00:26]} Ne6 {[%emt 0:00:02]} 66. Ba7 {[%emt 0:00:07]} Ng5 {[%emt 0:00:37]} 67. Ke2 {[%emt 0:00:11]} Ke6 {[%emt 0:00:23]} 68. Bc5 {[%emt 0:00:37]} Kd5 {[%emt 0:00:07]} 69. Be7 {[%emt 0:00:11]} Ne6 {[%emt 0:00:06]} 70. Bf6 {[%emt 0:00:35]} Nd4+ {[%emt 0:00:08]} 71. Kf2 {[%emt 0:00:02]} Nc6 {[%emt 0:00:09]} 0-1

[Event "Ceara-ch 2019"]
[Site "Fortaleza"]
[Date "2019.11.19"]
[Round "2.1"]
[White "Da Justa, Saulo Freitas"]
[Black "Barreto, Paulo Robson Rodrigu"]
[Result "1/2-1/2"]
[ECO "A16"]
[WhiteElo "1911"]
[BlackElo "1692"]
[Annotator "NA RC"]
[PlyCount "105"]
[EventDate "2019.11.17"]
[EventType "tourn"]
[EventCountry "BRA"]
[SourceTitle "playchess.com"]
[Source "ChessBase"]
[SourceQuality "1"]
[TimeControl "5400+30"]

{[%evp 8,104,41,28,39,24,35,0,0,2,-8,-2,-18,-18,32767,32767,-33,-41,-56,32767,32767,-47,-47,-43,-67,-149,-56,32767,-120,-127,-137,-184,-184,-176,-110,-212,-245,-243,-233,32767,-315,-340,-255,-302,-200,-176,-113,-112,-94,-107,-101,-119,-114,-182,-189,-227,-185,-197,-136,-202,-113,32767,-149,-155,-175,-146,-114,-111,-106,-114,-118,-118,-51,-98,-97,-112,-117,-87,-103,-154,-119,-133,-3,-5,0,-4,-4,0,0,0,0,0,0,0,0,-45,0,0,0]} 1. Nf3 {[%emt 0:00:04]} Nf6 {[%emt 0:00:50]} 2. c4 {[%emt 0:00:51]} g6 {[%emt 0:00:29]} 3. Nc3 {[%emt 0:00:21]} d5 {[%emt 0:00:51]} 4. cxd5 {[%emt 0:02:37]} Nxd5 {[%emt 0:00:12]} 5. e4 {[%emt 0:04:00]} Nxc3 {[%emt 0:01:11]} 6. bxc3 {[%emt 0:00:15]} Bg7 {[%emt 0:00:39]} 7. Bc4 {[%emt 0:02:03]} O-O {[%emt 0:01:02]} 8. O-O {[%emt 0:03:35]} c5 {[%emt 0:07:58]} 9. h3 {[%emt 0:04:47]} Nc6 {[%emt 0:02:59]} 10. Bd5 {[%emt 0:22:32]} Qc7 {[%emt 0:05:32]} 11. Ba3 {[%emt 0:05:27]} e6 {[%emt 0:10:08]} 12. Bc4 {[%emt 0:06:15]} b6 {[%emt 0:00:48]} 13. Rc1 {[%emt 0:03:41]} Bb7 {[%emt 0:07:00]} 14. Qe2 {[%emt 0:03:59]} Rfd8 {[%emt 0:13:06]} 15. Rfd1 {[%emt 0:08:04]} Ne5 {[%emt 0:08:54]} 16. Bb2 {[%emt 0:08:45]} (16. Nxe5 $15 Qxe5 17. d3) 16... a6 {[%emt 0:05:04]} (16... Nxc4 $17 17. Qxc4 Qd7) 17. a4 {[%emt 0:05:20]} Bc6 {[%emt 0:00:36]} 18. Nxe5 {[%emt 0:00:56]} Qxe5 {[%emt 0:00:14]} ({Much less strong is} 18... Bxe5 19. d4 $17) 19. Bxa6 {[%emt 0:02:29]} Bxa4 {[%emt 0:12:45]} ({But not} 19... Bxe4 20. Bb5 $15) 20. Re1 {[%emt 0:03:46]} Qd6 {[%emt 0:00:18]} (20... Qb8 $19 21. Bd3 Qd6) 21. Ba1 {[%emt 0:04:38]} (21. d4 $17 {was called for.}) 21... Qxd2 {[%emt 0:01:24]} 22. Qf1 {[%emt 0:00:47]} Qd6 {[%emt 0:10:44]} 23. Be2 {[%emt 0:00:07]} Bh6 {[%emt 0:00:39]} 24. e5 {[%emt 0:06:41]} Qc7 {[%emt 0:00:53]} ({Weaker is} 24... Qxe5 25. Bf3 $19) 25. f4 {[%emt 0:00:00] [#]} Rd2 {[%emt 0:01:03]} (25... c4 $1 $19 {[%mdl 512]} 26. Bxc4 Bc6) 26. c4 {[%emt 0:00:00]} Rad8 {[%emt 0:00:34]} 27. Bc3 {[%emt 0:00:00]} R2d7 {[%emt 0:00:34]} 28. Qf3 {[%emt 0:00:00]} Bc6 {[%emt 0:02:08]} 29. Qf2 {[%emt 0:00:00]} Be4 {[%emt 0:00:26]} 30. g4 {[%emt 0:00:23]} (30. Bd1 $17) 30... Bd3 {[%emt 0:00:57]} 31. g5 {[%emt 0:00:05]} Bg7 {[%emt 0:00:04]} 32. Red1 {[%emt 0:00:36]} (32. Qf3 $17 {is a better defense.}) 32... Qc6 {[%emt 0:02:15]} 33. Qe3 {[%emt 0:00:29]} Be4 {[%emt 0:01:52]} 34. Kf2 {[%emt 0:00:30]} Rxd1 {[%emt 0:01:03]} 35. Rxd1 {[%emt 0:00:02]} Rxd1 {[%emt 0:00:10]} 36. Bxd1 {[%emt 0:00:16]} Bf5 {[%emt 0:00:19]} 37. Bf3 {[%emt 0:00:56]} Qa4 {[%emt 0:00:16]} 38. Be2 {[%emt 0:00:44]} Qc2 {[%emt 0:00:56]} 39. h4 {[%emt 0:01:28]} Bg4 {[%emt 0:00:34]} ({Black should play} 39... h5 $17 40. Bd2 Qb1) 40. Bd2 {[%emt 0:00:30]} Bxe2 {[%emt 0:00:16]} 41. Qxe2 {[%emt 0:00:21]} Qb3 {[%emt 0:00:20]} 42. Be3 {[%emt 0:00:08]} Bf8 {[%emt 0:00:54]} 43. Qf1 {[%emt 0:00:56]} Qb2+ {[%emt 0:00:47]} 44. Qe2 {[%emt 0:00:32]} Qxe2+ {[%emt 0:00:05]} (44... Qb1 $17 45. h5 gxh5 46. Qxh5 b5 47. cxb5 Qxb5) 45. Kxe2 {[%emt 0:00:12]} Be7 {[%emt 0:00:13]} 46. Kd3 {[%emt 0:00:05]} Kf8 {[%emt 0:00:07]} 47. Kc3 {[%emt 0:00:13]} Ke8 {[%emt 0:00:04]} 48. Kb3 {[%emt 0:00:05]} Kd7 {[%emt 0:00:09]} 49. Ka4 {[%emt 0:00:03]} Kc6 {[%emt 0:00:29]} 50. Bf2 {[%emt 0:02:45]} Bd8 {[%emt 0:00:13]} 51. Be3 {[%emt 0:00:32]} Bc7 {[%emt 0:02:32]} 52. Bf2 {[%emt 0:00:05]} Bd8 $11 {[%emt 0:01:16]} 53. Be3 {[%emt 0:02:34]} 1/2-1/2

[Event "Ceara-ch 2019"]
[Site "Fortaleza"]
[Date "2019.11.19"]
[Round "2.2"]
[White "Brandao, Marcius Gomes"]
[Black "Lima, Helio Viana Correia"]
[Result "1/2-1/2"]
[ECO "C01"]
[WhiteElo "2002"]
[BlackElo "1950"]
[Annotator "NA RC"]
[PlyCount "41"]
[EventDate "2019.11.17"]
[EventType "tourn"]
[EventCountry "BRA"]
[SourceTitle "playchess.com"]
[Source "ChessBase"]
[SourceQuality "1"]
[TimeControl "5400+30"]

{[%evp 8,41,24,15,25,15,43,17,14,18,40,25,89,0,4,0,0,0,14,11,70,32767,32767,15,23,32767,32767,-193,-83,-89,-32,-106,-31,-40,-41,-30]} 1. c4 {[%emt 0:00:00]} e6 {[%emt 0:00:00]} 2. e4 {[%emt 0:00:39]} d5 {[%emt 0:00:00]} 3. exd5 {[%emt 0:00:08]} exd5 {[%emt 0:00:08]} 4. d4 {[%emt 0:00:03]} c6 {[%emt 0:03:19]} 5. Nf3 {[%emt 0:00:46]} Bd6 {[%emt 0:01:54]} 6. Nc3 {[%emt 0:01:06]} Ne7 {[%emt 0:00:21]} 7. Bd3 {[%emt 0:03:45]} h6 {[%emt 0:01:21]} 8. O-O {[%emt 0:00:04] C01: French: Exchange Variation} Be6 {[%emt 0:05:48]} 9. cxd5 {[%emt 0:05:24]} Bxd5 $146 {[%emt 0:06:38]} (9... cxd5 $11 10. Nb5 Nbc6) ({Predecessor:} 9... Nxd5 10. Nxd5 cxd5 11. Re1 O-O 12. Ng5 Nc6 13. Nxe6 fxe6 14. Qg4 Rf6 15. Bd2 Qe8 {1-0 (24) Fishbein,A (2515)-Sevillano,E (2470) Chicago 1996}) 10. Ne4 {[%emt 0:05:30]} (10. Nh4 $16) 10... Bxe4 {[%emt 0:00:45]} 11. Bxe4 {[%emt 0:00:03]} Nd7 {[%emt 0:01:10]} 12. Re1 {[%emt 0:04:47]} Nf6 {[%emt 0:00:56]} 13. Bc2 {[%emt 0:01:49]} Qc7 {[%emt 0:11:06]} (13... O-O $11) 14. Ne5 {[%emt 0:05:43]} O-O {[%emt 0:04:19]} 15. Qf3 {[%emt 0:10:51]} Ned5 {[%emt 0:01:50]} 16. g4 {[%emt 0:08:16]} Rfe8 {[%emt 0:15:39]} 17. Qg3 {[%emt 0:20:23]} (17. Bf4 $17) 17... Nd7 {[%emt 0:05:23]} (17... c5 $19 {and Black stays clearly on top.} 18. f4 cxd4) 18. f4 {[%emt 0:03:47] [#]} Nf8 {[%emt 0:19:22]} (18... f6 $1 $17 {[%cal Rf6e5]} 19. Nd3 Qb6) 19. Bd2 {[%emt 0:05:35]} Re7 {[%emt 0:01:13]} (19... f6 $17 20. Nd3 Ne6) 20. Bb3 {[%emt 0:03:02]} Rae8 {[%emt 0:04:59]} 21. Qf2 $11 {[%emt 0:18:49]} 1/2-1/2

[Event "Ceara-ch 2019"]
[Site "Fortaleza"]
[Date "2019.11.19"]
[Round "2.5"]
[White "Palacio, Igor Da Paz"]
[Black "Parente, Renan Braz"]
[Result "1/2-1/2"]
[ECO "C00"]
[WhiteElo "2160"]
[BlackElo "2219"]
[Annotator "ChessBase"]
[PlyCount "141"]
[EventDate "2019.11.17"]
[EventType "tourn"]
[EventCountry "BRA"]
[SourceTitle "playchess.com"]
[Source "ChessBase"]
[SourceQuality "1"]
[TimeControl "5400+30"]

1. e4 {[%emt 0:00:00]} e6 {[%emt 0:00:00]} 2. d3 {[%emt 0:00:17]} d5 {[%emt 0:00:00]} 3. Nd2 {[%emt 0:00:20]} Nf6 {[%emt 0:00:00]} 4. Ngf3 {[%emt 0:01:07]} c5 {[%emt 0:00:47]} 5. g3 {[%emt 0:01:05]} Nc6 {[%emt 0:00:08]} 6. Bg2 {[%emt 0:00:10]} Be7 {[%emt 0:00:11]} 7. O-O {[%emt 0:00:07]} O-O {[%emt 0:00:09]} 8. Re1 {[%emt 0:00:28]} b5 {[%emt 0:00:10]} 9. a3 {[%emt 0:01:46]} Bb7 {[%emt 0:01:26]} 10. e5 {[%emt 0:05:50]} Nd7 {[%emt 0:00:09]} 11. h4 {[%emt 0:02:51]} Qc7 {[%emt 0:01:15]} 12. Qe2 {[%emt 0:00:27]} Rfc8 {[%emt 0:01:35]} 13. c3 {[%emt 0:08:44]} a5 {[%emt 0:01:42]} 14. Nf1 {[%emt 0:09:01]} d4 {[%emt 0:03:36]} 15. a4 {[%emt 0:02:51]} dxc3 {[%emt 0:01:45]} 16. bxc3 {[%emt 0:01:41]} b4 {[%emt 0:00:05]} 17. Bb2 {[%emt 0:01:31]} bxc3 {[%emt 0:04:52]} 18. Bxc3 {[%emt 0:00:07]} Nb6 {[%emt 0:00:16]} 19. Ne3 {[%emt 0:01:14]} Nb4 {[%emt 0:01:59]} 20. Nc4 {[%emt 0:08:36]} Bc6 {[%emt 0:13:48]} 21. Nxb6 {[%emt 0:08:34]} Qxb6 {[%emt 0:00:24]} 22. Red1 {[%emt 0:12:16]} Qa6 {[%emt 0:05:20]} 23. Ne1 {[%emt 0:03:07]} Bxg2 {[%emt 0:01:25]} 24. Nxg2 {[%emt 0:03:47]} Nd5 {[%emt 0:07:06]} 25. Be1 {[%emt 0:02:06]} c4 {[%emt 0:54:22]} 26. dxc4 {[%emt 0:00:23]} Qxc4 {[%emt 0:00:00]} 27. Qf3 {[%emt 0:02:09]} Bb4 {[%emt 0:00:00]} 28. Ne3 {[%emt 0:01:53]} Nxe3 {[%emt 0:00:00]} 29. Qxe3 {[%emt 0:00:11]} Qc5 {[%emt 0:00:00]} 30. Qxc5 {[%emt 0:04:41]} Rxc5 {[%emt 0:00:00]} 31. Bxb4 {[%emt 0:05:24]} axb4 {[%emt 0:00:00]} 32. Rdb1 {[%emt 0:00:48]} Rb8 {[%emt 0:00:00]} 33. a5 {[%emt 0:01:44]} Rxe5 {[%emt 0:00:00]} 34. a6 {[%emt 0:00:39]} Reb5 {[%emt 0:00:00]} 35. a7 {[%emt 0:01:19]} Ra8 {[%emt 0:00:00]} 36. Ra4 {[%emt 0:01:28]} f6 {[%emt 0:00:00]} 37. Rbxb4 {[%emt 0:01:28]} Rxb4 {[%emt 0:00:00]} 38. Rxb4 {[%emt 0:00:04]} Rxa7 {[%emt 0:00:00]} 39. Rb6 {[%emt 0:00:15]} Kf7 {[%emt 0:00:00]} 40. Rc6 {[%emt 0:00:07]} e5 {[%emt 0:00:00]} 41. Rb6 {[%emt 0:00:20]} Kg6 {[%emt 0:00:00]} 42. Kg2 {[%emt 0:00:20]} Kf5 {[%emt 0:00:00]} 43. Rb4 {[%emt 0:01:01]} g6 {[%emt 0:00:00]} 44. Rb5 {[%emt 0:01:53]} Ra6 {[%emt 0:00:00]} 45. Rb7 {[%emt 0:00:06]} h6 {[%emt 0:00:00]} 46. Rh7 {[%emt 0:00:08]} h5 {[%emt 0:00:00]} 47. Rb7 {[%emt 0:01:00]} Ke6 {[%emt 0:00:00]} 48. Rg7 {[%emt 0:00:15]} Kf5 {[%emt 0:00:00]} 49. Rb7 {[%emt 0:00:05]} Ra2 {[%emt 0:00:00]} 50. Rb6 {[%emt 0:01:36]} e4 {[%emt 0:00:00]} 51. Rb3 {[%emt 0:03:03]} Rd2 {[%emt 0:00:00]} 52. Rb5+ {[%emt 0:01:06]} Ke6 {[%emt 0:00:00]} 53. Rb8 {[%emt 0:00:30]} f5 {[%emt 0:00:00]} 54. Kf1 {[%emt 0:01:13]} Kf7 {[%emt 0:00:00]} 55. Rb6 {[%emt 0:00:35]} Rd3 {[%emt 0:00:00]} 56. Kg2 {[%emt 0:00:53]} f4 {[%emt 0:00:00]} 57. Rb4 {[%emt 0:01:38]} f3+ {[%emt 0:00:00]} 58. Kh3 {[%emt 0:01:31]} Rd1 {[%emt 0:00:00]} 59. Kh2 {[%emt 0:00:01]} Re1 {[%emt 0:00:00]} 60. Rb6 {[%emt 0:00:24]} Rf1 {[%emt 0:00:00]} 61. Rb2 {[%emt 0:00:21]} Kg7 {[%emt 0:00:00]} 62. Ra2 {[%emt 0:00:04]} Re1 {[%emt 0:00:00]} 63. g4 {[%emt 0:01:13]} hxg4 {[%emt 0:02:51]} 64. Kg3 {[%emt 0:00:39]} Re2 {[%emt 0:03:30]} 65. Ra3 {[%emt 0:01:15]} e3 {[%emt 0:00:34]} 66. Kxg4 {[%emt 0:00:24]} exf2 {[%emt 0:02:11]} 67. Rxf3 {[%emt 0:00:10]} Kh6 {[%emt 0:00:21]} 68. Rf8 {[%emt 0:00:58]} Kg7 {[%emt 0:02:34]} 69. Rf3 {[%emt 0:00:02]} Ra2 {[%emt 0:01:48]} 70. Kg3 {[%emt 0:00:04]} Kh6 {[%emt 0:00:23]} 71. Rxf2 {[%emt 0:00:23]} 1/2-1/2

[Event "Ceara-ch 2019"]
[Site "Fortaleza"]
[Date "2019.11.23"]
[Round "3.4"]
[White "Lima, Helio Viana Correia"]
[Black "Lima, Alan Elkinson Lopes "]
[Result "1/2-1/2"]
[ECO "E11"]
[WhiteElo "1950"]
[BlackElo "1928"]
[Annotator "NA RC"]
[PlyCount "61"]
[EventDate "2019.11.17"]
[EventType "tourn"]
[EventCountry "BRA"]
[SourceTitle "playchess.com"]
[Source "ChessBase"]
[SourceQuality "1"]
[TimeControl "5400+30"]

{[%evp 33,61,101,175,157,275,345,315,360,316,330,335,111,113,31,33,33,28,31,50,39,55,-18,-18,-38,-28,-36,-34,-32,-11,-134]} 1. d4 {[%emt 0:00:00]} Nf6 {[%emt 0:00:00]} 2. c4 {[%emt 0:00:00]} e6 {[%emt 0:00:10]} 3. Nf3 {[%emt 0:00:00]} Bb4+ {[%emt 0:00:04]} 4. Nbd2 {[%emt 0:00:15]} b6 {[%emt 0:00:23]} 5. a3 {[%emt 0:00:21]} Bxd2+ {[%emt 0:00:18]} 6. Nxd2 {[%emt 0:00:27]} Bb7 {[%emt 0:01:55] E11: Bogo-Indian} 7. e3 {[%emt 0:00:10]} d6 {[%emt 0:05:25]} 8. Bd3 {[%emt 0:02:50]} Nbd7 {[%emt 0:03:09]} 9. O-O {[%emt 0:05:49]} Qe7 $146 {[%emt 0:03:09]} ({Predecessor:} 9... O-O 10. b4 a5 11. Bb2 axb4 12. axb4 Rxa1 13. Qxa1 Qa8 14. f3 Qxa1 15. Rxa1 {½-½ (51) Demidov,M (2514)-Roy,P (2403) Pardubice 2016}) 10. e4 {[%emt 0:00:30]} e5 {[%emt 0:00:19]} 11. d5 {[%emt 0:00:40]} Nc5 {[%emt 0:05:13]} 12. Bc2 {[%emt 0:00:33]} a5 {[%emt 0:00:08]} 13. b3 {[%emt 0:00:40]} Bc8 {[%emt 0:01:28]} 14. h3 {[%emt 0:00:54]} O-O {[%emt 0:06:21]} 15. Bb2 {[%emt 0:02:14]} Ne8 {[%emt 0:04:56]} 16. f4 {[%emt 0:01:36]} exf4 {[%emt 0:02:31]} 17. Rxf4 {[%emt 0:13:08]} f5 {[%emt 0:03:55]} (17... Nd7 $16 {was necessary.}) 18. Qf3 {[%emt 0:16:06]} fxe4 {[%emt 0:04:38]} (18... g5 $16 {was called for.}) 19. Nxe4 {[%emt 0:01:37]} Rxf4 {[%emt 0:02:57]} 20. Qxf4 {[%emt 0:00:21]} Nxe4 {[%emt 0:00:04]} 21. Bxe4 {[%emt 0:01:08]} Nf6 {[%emt 0:00:40] [#]} 22. Bd3 $2 {[%emt 0:05:03]} (22. Re1 $1 $18 {is the precise move to win.} Nh5 23. Qf1) 22... Bd7 {[%emt 0:01:24]} 23. a4 {[%emt 0:08:19]} (23. Rf1 $16) 23... Re8 {[%emt 0:06:43]} 24. Bd4 {[%emt 0:00:42]} Nh5 $1 {[%emt 0:02:39]} 25. Qf3 {[%emt 0:06:43]} Qh4 {[%emt 0:10:04]} 26. Bf2 {[%emt 0:05:34]} Qg5 {[%emt 0:03:45]} 27. h4 {[%emt 0:00:48]} (27. Rf1 $1 $14) 27... Qg4 {[%emt 0:00:16]} 28. Qxg4 {[%emt 0:01:45]} Bxg4 {[%emt 0:00:06]} 29. g3 {[%emt 0:06:18]} Nf6 {[%emt 0:02:12]} 30. Kg2 {[%emt 0:04:27]} Kf7 {[%emt 0:04:43]} 31. Rf1 $17 {[%emt 0:16:32]} (31. Bd4 $11 {remains equal.}) 1/2-1/2